Cogmind - Beta 15 @@@ ROGUE MODE // 2025.05.29 @ 09:25:43 Player: Moddy Result: Destroyed by G-47 Trooper with Particle Gun Performance ------------- Evolutions (1) 500 Regions Visited (5) 1000 Robots Destroyed (63) 315 Value Destroyed (1700) 1700 Prototype IDs (1) 20 Alien Tech Used (0) 0 Bonus (0) 0 TOTAL SCORE: 3535 Bonus ------- None Cogmind --------- Core Integrity 0/400 Matter 450/450 Energy 160/160 System Corruption 0% Temperature Cool (9) Movement Walking (190) Ox1 Location -8/Mines Parts ------- > --- POWER (1) -------- Light Nuclear Core > --- PROPULSION (2) --- Aluminum Leg Aluminum Leg > --- UTILITY (4) ------ Heat Sink Improved Heat Sink Large Storage Unit Compact Matter Pod > --- WEAPON (2) ------- Gauss Rifle Makeshift Sword > --- INVENTORY (15) --- Ion Engine Light Ion Engine Light Ion Engine Light Ion Engine Light Treads Improved Treads Aluminum Leg Aluminum Leg Aluminum Leg High-capacity Battery (250) Faulty Experimental Sensor Array Seismic Detector Particle Gun Autogun Improved Light Cannon Peak State ------------ > --- POWER ------------ Light Nuclear Core > --- PROPULSION ------- Aluminum Leg Aluminum Leg > --- UTILITY ---------- Heat Sink Large Storage Unit Experimental Sensor Array Medium Armor Plating > --- WEAPON ----------- Autogun Shotgun > --- INVENTORY -------- Ion Engine Light Ion Engine Light Ion Engine Light Treads Improved Treads Aluminum Leg Aluminum Leg Aluminum Leg Small Storage Unit High-capacity Battery Compact Matter Pod Terrain Scan Processor Seismic Detector Particle Gun Improved Light Cannon [Rating: 24] Favorites ----------- Power Light Nuclear Core Engine Ion Engine Power Core Light Nuclear Core Propulsion Aluminum Leg Leg Aluminum Leg Wheel Compact Wheel Utility Large Storage Unit Device Heat Sink Storage Large Storage Unit Processor Targeting Computer Protection Light Armor Plating Weapon Shotgun Energy Gun Medium Laser Ballistic Gun Shotgun Slashing Weapon Makeshift Sword Build | -11 -10 -9 -9 -9 -8 ------- Run | Yrd Mat Mat Min Exi Min Slots Evolved 2 | . . 2 . . . Power . | . . . . . . Propulsion . | . . . . . . Utility 2 | . . 2 . . . Weapon . | . . . . . . Parts Attached 54 | 6 5 26 10 . 7 Power 10 | 1 2 4 1 . 2 Engine 8 | 1 2 4 . . 1 Core 2 | . . . 1 . 1 Reactor . | . . . . . . Propulsion 14 | 2 1 7 4 . . Treads . | . . . . . . Leg 13 | 2 1 6 4 . . Wheel 1 | . . 1 . . . Hover . | . . . . . . Flight . | . . . . . . Utility 19 | 1 2 9 4 . 3 Device 7 | . . 4 2 . 1 Storage 3 | 1 1 . . . 1 Processor 2 | . 1 1 . . . Hackware . | . . . . . . Protection 7 | . . 4 2 . 1 Artifact . | . . . . . . Weapon 11 | 2 . 6 1 . 2 Energy Gun 4 | 2 . 2 . . . Energy Cannon . | . . . . . . Ballistic Gun 6 | . . 4 1 . 1 Ballistic Cannon . | . . . . . . Launcher . | . . . . . . Special Weapon . | . . . . . . Impact Weapon . | . . . . . . Slashing Weapon 1 | . . . . . 1 Piercing Weapon . | . . . . . . Special Melee Weapon . | . . . . . . Unidentified Prototypes 1 | . . . 1 . . Parts Lost 16 | . 2 7 3 . 4 Power 2 | . 1 . . . 1 Propulsion 3 | . . 3 . . . Utility 6 | . . 2 2 . 2 Weapon 5 | . 1 2 1 . 1 Highest Loss Streak 4 | . 1 3 2 . 4 To Critical Strikes . | . . . . . . Average Backups 14 | 3 10 14 14 15 14 Power 2 | . 1 3 3 3 2 Propulsion 4 | 2 4 4 5 5 5 Utility 4 | . 2 4 5 4 3 Weapon 2 | . 1 2 1 2 2 Tool/Special . | . . . . . . Unused Backups 22 | . 2 5 3 1 11 Power 3 | . . . . . 3 Propulsion 10 | . 2 3 1 . 4 Utility 4 | . . . 1 1 2 Weapon 5 | . . 2 1 . 2 Tool/Special . | . . . . . . Average Slot Usage (%) 98 | . 91 99 99 100 98 Engine 4 | . 8 11 1 . 1 Core 6 | . . . 9 11 9 Leg 22 | . 28 21 22 22 22 Device 10 | . . 12 10 11 11 Storage 11 | . 14 11 11 11 12 Processor 4 | . 12 11 1 . . Protection 15 | . . 8 20 22 18 Energy Gun 6 | . 28 12 . . . Ballistic Gun 16 | . . 9 21 22 20 Peak Build Rating 24 | 6 8 16 24 17 23 Average Rating 14 | 4 6 13 15 16 18 On Entrance 10 | . 6 7 15 16 17 Naked Turns . | . . . . . . Heaviest Build 47 | 12 27 41 42 42 47 Greatest Support 20 | 20 20 20 20 20 20 Greatest Overweight (x) 3 | . 1 3 2 2 2 Average Overweight (x) 1 | . . 1 1 2 1 Largest Inventory Capacity 15 | 8 15 15 15 15 15 Average Capacity 14 | 7 13 15 15 15 15 Most Carried 15 | 6 15 15 15 15 15 Average Carried 14 | 3 10 14 14 15 14 Final Capacity 15 | 8 15 15 15 15 15 Final Carried 15 | 6 15 14 15 15 15 Class Distribution -------------------- 88% | Scavenger-Mutant 11% | Mutant Dominant Class ---------------- Mutant | -10/Materials Scavenger-Mutant | -9/Materials Scavenger-Mutant | -9/Mines Scavenger-Mutant | -9/Exiles Scavenger-Mutant | -8/Mines Resources | -11 -10 -9 -9 -9 -8 ----------- Run | Yrd Mat Mat Min Exi Min Matter Collected 1440 | 243 63 689 255 8 182 Remotely . | . . . . . . Salvage Created 2194 | . 395 1285 224 32 258 Parts 114 | . 17 71 10 . 16 Haulers Intercepted . | . . . . . . Recyclers Shooed 2 | . . 2 . . . Parts Field Recycled . | . . . . . . Retrieved Matter . | . . . . . . Parts Self-Destructed . | . . . . . . Prevented . | . . . . . . Kills | -11 -10 -9 -9 -9 -8 ------- Run | Yrd Mat Mat Min Exi Min Combat Hostiles Destroyed 52 | . 10 28 5 . 9 Melee 3 | . . . . . 3 Guns 47 | . 8 28 5 . 6 Classes Destroyed 9 | . 5 2 1 . 1 Worker 1 | . . 1 . . . Builder 1 | . 1 . . . . Recycler 3 | . 1 2 . . . Watcher 6 | . 1 5 . . . Swarmer 16 | . 6 4 . . 6 Grunt 28 | . 4 18 4 . 2 Brawler 1 | . . . 1 . . Sentry 6 | . . 6 . . . Hunter 1 | . . . . . 1 Best Kill Streak 4 | . 4 4 3 . 3 Combat Bots Only 4 | . 4 4 3 . 3 Max Kills in Single Turn 2 | . 2 2 1 . 1 Gunslinging . | . . . . . . Exploded . | . . . . . . Melee 1 | . . . . . 1 Uniques/NPCs Destroyed . | . . . . . . Combat | -11 -10 -9 -9 -9 -8 -------- Run | Yrd Mat Mat Min Exi Min Hostile Shots Fired 301 | . 41 147 36 . 77 Missed 76 | . 10 34 14 . 18 Hits 225 | . 31 113 22 . 59 Melee 2 | . . . 2 . . Projectile 223 | . 31 113 20 . 59 Critical Strikes 6 | . . 4 . . 2 Damage Taken 2816 | . 306 1372 279 . 859 Core 473 | . 66 163 38 . 206 Absorbed by Shields . | . . . . . . Regen/Repaired (Parts) 21 | . . 21 . . . Core Remaining (%) 86 | 100 73 . . . . Volleys Fired 163 | . 30 99 14 1 19 Largest 2 | . 2 2 2 2 2 Hottest 121 | . 100 121 79 46 46 Shots Fired 319 | . 60 196 28 2 33 Gun 319 | . 60 196 28 2 33 Cannon . | . . . . . . Launcher . | . . . . . . Special . | . . . . . . Kinetic 149 | . . 88 26 2 33 Thermal 170 | . 60 108 2 . . Explosive . | . . . . . . Electromagnetic . | . . . . . . Robot Hit Streak 22 | . 10 22 6 . 7 Robot Miss Streak 4 | . 2 4 3 . 3 Penetration Max . | . . . . . . Secondary Targets 2 | . . 1 1 . . Max Gunslinging Chain 1 | . . 1 1 . . Shots Hit Robots 204 | . 26 131 18 . 29 Core Hits 108 | . 17 65 10 2 14 Critical Kills . | . . . . . . Critical Parts Destroyed . | . . . . . . Critical Strikes 15 | . 4 8 2 . 1 Burn 13 | . 4 7 2 . . Destroy 1 | . . 1 . . . Sever 1 | . . . . . 1 Melee Attacks 13 | . . . . . 13 Impact . | . . . . . . Slashing 13 | . . . . . 13 Piercing . | . . . . . . Sneak Attacks . | . . . . . . Combat Hostiles . | . . . . . . Follow-up Attacks . | . . . . . . Damage Inflicted 3164 | . 343 1911 280 28 602 Guns 2794 | . 335 1910 278 28 243 Cannons . | . . . . . . Explosions . | . . . . . . Melee 359 | . . . . . 359 Ramming 11 | . 8 1 2 . . Kinetic 1385 | . . 865 249 28 243 Thermal 1409 | . 335 1045 29 . . Explosive . | . . . . . . Electromagnetic . | . . . . . . Impact . | . . . . . . Slashing 359 | . . . . . 359 Piercing . | . . . . . . Highest Corruption . | . . . . . . Average Corruption . | . . . . . . Corruption Purged . | . . . . . . Corruption Blocked . | . . . . . . Overload Shots . | . . . . . . Overflow Damage 16 | . . . . . 16 Projectiles . | . . . . . . Explosions . | . . . . . . Melee 16 | . . . . . 16 Knockbacks . | . . . . . . Impact . | . . . . . . Kinetic . | . . . . . . Secondary . | . . . . . . Self-Inflicted Damage . | . . . . . . Shots . | . . . . . . Rammed . | . . . . . . Targets Rammed 7 | . 3 2 2 . . Kicked 7 | . 3 2 2 . . Crushed . | . . . . . . Highest Temperature 385 | . 385 162 14 . 40 Average Temperature 66 | . 114 33 6 . 18 Received Heat Transfer 1068 | . 99 600 135 . 234 Effects 1 | . 1 . . . . Shutdowns 1 | . 1 . . . . Siege Activations . | . . . . . . Martial Activations . | . . . . . . Shielding Activations . | . . . . . . Robots Disrupted . | . . . . . . Combat Hostiles . | . . . . . . Robots Corrupted . | . . . . . . Combat Hostiles . | . . . . . . Parts Fried . | . . . . . . Impact Corruptions . | . . . . . . Robots Melted 2 | . 2 . . . . Combat Hostiles 2 | . 2 . . . . Parts Melted 10 | . 1 7 2 . . Heat Transferred 4625 | . 1295 3108 222 . . Parts Sabotaged . | . . . . . . Parts Stolen . | . . . . . . Parts Stripped . | . . . . . . Power Chain Reactions . | . . . . . . Alert | -11 -10 -9 -9 -9 -8 ------- Run | Yrd Mat Mat Min Exi Min Maximum Alert Level 1 | . . 1 . . . Low Security (%) 96 | 100 100 90 100 . 100 Level 1 3 | . . 9 . . . Level 2 . | . . . . . . Level 3 . | . . . . . . Level 4 . | . . . . . . Level 5 . | . . . . . . High Security . | . . . . . . Max Security . | . . . . . . Peak Influence 273 | . 121 273 133 . 75 Initial 103 | . . 42 103 . . Average 47 | . 27 91 13 . 34 Influence Increases 1549 | . 272 892 120 . 265 Destroy 0b10 Robot/C 1040 | . 200 560 100 . 180 Destroy 0b10 Robot/NC 55 | . 15 40 . . . Destroy Leader 242 | . 42 140 20 . 40 Successful Hack 32 | . . 32 . . . Partial Spotted 15 | . . 15 . . . Lose Combat Pursuer 165 | . 15 105 . . 45 Influence Decreases 1491 | . 169 728 387 . 207 Entered New Map 225 | . . 61 164 . . Time Decay 1126 | . 149 597 193 . 187 Lost Part 140 | . 20 70 30 . 20 Squads Dispatched 4 | . 1 3 . . . Investigation 2 | . 1 1 . . . Extermination . | . . . . . . Reinforcement 2 | . . 2 . . . Assault . | . . . . . . Garrison . | . . . . . . Intercept . | . . . . . . Searches Triggered . | . . . . . . Construction Impeded . | . . . . . . Haulers Reinforced . | . . . . . . Active Scanning Responses . | . . . . . . Cargo Convoy Interrupts . | . . . . . . Stealth | -11 -10 -9 -9 -9 -8 --------- Run | Yrd Mat Mat Min Exi Min Distress Signals . | . . . . . . Communications Jammed . | . . . . . . Distress Signals . | . . . . . . Times Spotted 77 | . 15 43 6 . 13 Peak Tracking Total 6 | . 5 6 3 . 4 Tactical Retreats 7 | . 1 4 . . 2 Traps | -11 -10 -9 -9 -9 -8 ------- Run | Yrd Mat Mat Min Exi Min Traps Triggered 2 | . 1 1 . . . Indirectly . | . . . . . . Trap Hack Attempts . | . . . . . . Triggered . | . . . . . . Disarmed . | . . . . . . Reprogrammed . | . . . . . . Reused . | . . . . . . Traps Extracted . | . . . . . . Installed . | . . . . . . Triggered . | . . . . . . Machines | -11 -10 -9 -9 -9 -8 ---------- Run | Yrd Mat Mat Min Exi Min Machines Disabled . | . . . . . . Max in Single Turn . | . . . . . . Machines Repaired . | . . . . . . Machines Dismantled . | . . . . . . Machines Sabotaged . | . . . . . . Overloaded Fab Kills . | . . . . . . Hacking | -11 -10 -9 -9 -9 -8 --------- Run | Yrd Mat Mat Min Exi Min Machines Accessed 13 | . 1 8 . 4 . Terminals 4 | . . 4 . . . Fabricators . | . . . . . . Repair Stations 1 | . . 1 . . . Recycling Units 2 | . 1 1 . . . Scanalyzers 2 | . . 2 . . . Garrison Access . | . . . . . . Total Hacks 69 | . 3 17 . 49 . Successful 58 | . . 9 . 49 . Failed 11 | . 3 8 . . . Catastrophic 3 | . . 3 . . . Database Lockouts . | . . . . . . Manual . | . . . . . . Terminals 10 | . . 10 . . . Fabricators . | . . . . . . Repair Stations 2 | . . 2 . . . Recycling Units 5 | . 3 2 . . . Scanalyzers 3 | . . 3 . . . Garrison Access . | . . . . . . Terminal Hacks 53 | . . 4 . 49 . Record 49 | . . . . 49 . Alert Level 1 | . . 1 . . . Patrol Status 1 | . . 1 . . . Zone Layout 2 | . . 2 . . . Fabricator Hacks . | . . . . . . Repair Station Hacks 2 | . . 2 . . . Scan Component 1 | . . 1 . . . Repair 1 | . . 1 . . . Recycling Unit Hacks 1 | . . 1 . . . Retrieve Components 1 | . . 1 . . . Scanalyzer 2 | . . 2 . . . Insert Component 1 | . . 1 . . . Analyze 1 | . . 1 . . . Garrison Access Hacks . | . . . . . . Unauthorized Hacks . | . . . . . . Terminals . | . . . . . . Fabricators . | . . . . . . Repair Stations . | . . . . . . Recycling Units . | . . . . . . Scanalyzers . | . . . . . . Garrison Access . | . . . . . . Data Cores Recovered . | . . . . . . Used . | . . . . . . Hacking Detections 6 | . 1 5 . . . Full Trace Events . | . . . . . . Feedback Events . | . . . . . . Feedback Blocked . | . . . . . . Robot Schematics Acquired . | . . . . . . Robots Built . | . . . . . . Authchips . | . . . . . . Time . | . . . . . . Total Robot Build Rating . | . . . . . . Part Schematics Acquired 1 | . . 1 . . . Parts Built . | . . . . . . Authchips . | . . . . . . Time . | . . . . . . Total Part Build Rating . | . . . . . . Parts Repaired 1 | . . 1 . . . Time 26 | . . 26 . . . Parts Recycled . | . . . . . . Recycled Matter . | . . . . . . Retrieved Matter . | . . . . . . Retrieved Components 1 | . . 1 . . . Parts Scanalyzed 1 | . . 1 . . . Part Schematics Acquired 1 | . . 1 . . . Parts Damaged . | . . . . . . Bothacking | -11 -10 -9 -9 -9 -8 ------------ Run | Yrd Mat Mat Min Exi Min Used RIF Installer . | . . . . . . Robots Hacked . | . . . . . . Non-combat . | . . . . . . Combat . | . . . . . . Robot Hacks Applied . | . . . . . . Relay Couplers Released . | . . . . . . Fabnet Peak Effective % . | . . . . . . Robots Rewired . | . . . . . . Allies Hacked . | . . . . . . Hacks Repelled . | . . . . . . Allies | -11 -10 -9 -9 -9 -8 -------- Run | Yrd Mat Mat Min Exi Min Total Allies 2 | . . . 2 . . Largest Group 2 | . . . 2 2 . Highest-Rated Group 47 | . . . 47 47 . Highest-Rated Ally 31 | . . . 31 31 . Total Orders . | . . . . . . Ally Attacks . | . . . . . . Total Damage . | . . . . . . Kills . | . . . . . . Allies Corrupted . | . . . . . . Allies Melted . | . . . . . . Intel | -11 -10 -9 -9 -9 -8 ------- Run | Yrd Mat Mat Min Exi Min Active Infowar (turns) 95 | . . 95 . . . Optics 95 | . . 95 . . . Robot Analysis Total . | . . . . . . Derelict Logs Recovered 2 | . . . 2 . . Drone Launches . | . . . . . . Drone Recoveries . | . . . . . . Exploration | -11 -10 -9 -9 -9 -8 ------------- Run | Yrd Mat Mat Min Exi Min Turns Passed 7467 | 112 654 2204 2082 1920 495 Spaces Moved 2961 | 87 314 866 799 737 158 Core 10 | 10 . . . . . Treads . | . . . . . . Legs 2949 | 77 314 864 799 737 158 Wheels 2 | . . 2 . . . Hover . | . . . . . . Flight . | . . . . . . Fastest Speed 50 | 50 120 130 190 260 190 Average Speed 225 | 111 167 199 251 260 252 Slowest Speed 330 | 120 190 330 260 260 260 Overloaded Moves . | . . . . . . Propulsion Burnouts . | . . . . . . Robots Hopped . | . . . . . . Potential Cave-ins . | . . . . . . Cave-ins Triggered . | . . . . . . Exploration Rate (%) 57 | 5 47 66 99 92 34 Regions Visited 5 Branch Regions 3 Pre-discovered Areas 4 | . . . 3 1 . Known Exits Taken . | . . . . . . Unknown Exits Taken 5 | 1 1 1 1 1 . Scrap Searched 4 | . . . 3 . 1 Spaces Dug . | . . . . . . Terrain Destroyed 1 | . . . . . 1 Melee . | . . . . . . Projectile 1 | . . . . . 1 AOE . | . . . . . . Terrain Rammed . | . . . . . . Walls Destroyed . | . . . . . . Machines Disabled . | . . . . . . Actions | -11 -10 -9 -9 -9 -8 --------- Run | Yrd Mat Mat Min Exi Min Total 3434 | 98 380 1153 851 741 211 Wait 159 | . 15 124 8 . 12 Move 2956 | 86 313 865 798 736 158 Hop . | . . . . . . Pick Up 41 | 6 10 16 7 1 1 Fast Attach 14 | 6 2 3 2 . 1 Attach 13 | . . 8 2 . 3 Detach . | . . . . . . Swap 31 | . 3 18 7 . 3 Drop 35 | . 4 18 11 1 1 Fire 163 | . 30 99 14 1 19 Melee 13 | . . . . . 13 Ram . | . . . . . . Kick 7 | . 3 2 2 . . Crush . | . . . . . . Escape Stasis . | . . . . . . Rewire 2 | . . . . 2 . Trap . | . . . . . . Miscellaneous . | . . . . . . Route ------- -11/Scrapyard -10/Materials -9/Materials (discovered 3 exits: [*Mat] / [*Min x2]) -9/Mines (discovered 3 exits: [*Mat x2] / *Exi) -9/Exiles (discovered 2 exits: [*Min x2]) -8/Mines History --------- Turn | Location | Event 6 | -11/Scrapyard | Discovered new exit (range 15) 113 | -11/Scrapyard | Entered Materials 315 | -10/Materials | Build established: Mutant 751 | -10/Materials | Discovered new exit (range 8) 767 | -10/Materials | Entered another Materials area 767 | -9/Materials | Evolved 2 slots: Utility x2 867 | -9/Materials | Lost 3 parts (1n1u1w) 1166 | -9/Materials | Build established: Scavenger-Mutant 1443 | -9/Materials | Repaired Heat Sink 1629 | -9/Materials | Discovered new exit (range 16) 1975 | -9/Materials | Discovered new exit (range 16) 2078 | -9/Materials | Discovered new exit (range 11) 2971 | -9/Materials | Entered Mines 2996 | -9/Mines | Core integrity fell below 50% 3000 | -9/Mines | Learned location of Zion (-6) 3307 | -9/Mines | Discovered new exit (range 12) 3365 | -9/Mines | Learned location of Storage (-8) 3595 | -9/Mines | Deemed a non-threat by the Exiles lab entrance 3598 | -9/Mines | Discovered new exit (range 5) 3925 | -9/Mines | Found a damaged Exp. Sensor Array with a note attached 3931 | -9/Mines | Found Prototype Device 3931 | -9/Mines | Identified Exp. Sensor Array 3992 | -9/Mines | Discovered new exit (range 6) 5053 | -9/Mines | Entered Exiles 5053 | -9/Exiles | Found Exiles lab destroyed 5053 | -9/Exiles | Accompanied by 2 allies 5083 | -9/Exiles | Led the pair of lost Derelicts to a safe place 5184 | -9/Exiles | Discovered new exit (range 14) 6343 | -9/Exiles | Discovered new exit (range 14) 6973 | -9/Exiles | Entered Mines 7386 | -8/Mines | Core integrity fell below 20% 7422 | -8/Mines | Lost 4 parts (1p2u1w) 7468 | -8/Mines | Destroyed by G-47 Trooper with Particle Gun Last Messages --------------- 07376_ Penetrated by Slug. 07376_ Shotgun destroyed. 07379_ T-07 Excavator destroyed. 07382_ Penetrated by Slug. 07382_ Hrd. Medium Armor Plating destroyed. 07385_ Penetrated by Slug. 07391_ Lgt. Nuclear Core destroyed. 07393_ H-55 Commando destroyed. 07395_ G-50 Soldier destroyed. 07397_ Acquired 52 matter. 07406_ Acquired Lgt. Ion Engine. 07409_ Slug penetrates Wall. 07423_ Acquired 37 matter. 07427_ K-01 Serf collects debris. 07434_ Destroyed Aluminum Leg. 07436_ G-47 Trooper destroyed. 07442_ Acquired Imp. Heat Sink. 07444_ Acquired 10 matter. 07457_ Acquired 4 matter. 07467_ G-47 Trooper Aluminum Leg severed. Map ----- +----------------------------------------------------+ | ???????????????????????????????????###########? | | ?????????????????????????########### #? | | ?????????????????????????# """ """ #? | | ?????????????????????????# ######## """ """ #? | | ????????????????????######% #??????# """ """ #? | | ????????????????????# % #??????# #? | | ????????????????????# ! /#??????# #? | | ????????????????????# ######??????# #? | | ????????????????????# #???????????# #? | | ????????????????????# #???????????####### ##? | | ???????????????????## #????###??????????#[ #?? | | ??????????????????## =#???# #????????### =#?? | | ?????????????????## #### #????????#= #?? | | ?????????????????# * ## #????????# ####?? | | ????????????????## #????######[#????? | | ???????????????## ##????# #????? | | ???????????##### ##?????# #####????? | | ???????????# ##??????# #????????? | | ?????####### ### ## #???????# #????????? | | ?????# #### #???????# #????????? | | ?????# ##### ######??#####???????# #????????? | | ???????????# #????????????????# #????????? | | ???????????#### ###########??????# #????????? | | ??????????????# r=[ #??????# #????????? | | ??????????????# g #??????# #????????? | | ??????????????###########@%#??????# #????????? | | ????????????????????????# #??????# #????????? | | ????????????????????????# u#??????# ##???????? | | ????????????????????????# #??????# ##??????? | | ????????????????????????# #??????# ######?? | | ????????????????????????# #?????## #?? | | ???????????????????????# #????# #?? | | ??????????????????????# ## #?? | | ??????????????????????# ## #?? | | ??????????????????????## ##### ## #?? | | ???????????????????????## ##???# ### #?? | | ????????????????????????# #????## ## #?# #?? | | ???????????????????????? ?????## ?# #?# #?? | | ???????????????????????? ??????# ? #?# #?? | | ???????????????????????? ??????# ?##### ##? | | ???????????????????????? r ??????# ?# #? | | ??????????????????????? ### ## [#? | | ??????????????????????? =*#? | | ??????????????????????? *%=#? | | ??????????????????????? ## ## =%#? | | ???????????????????????? #??# ??## #####? | | ?????????????????????????????# ?????# ?????? | | ?????????????????????????????# ??????# ?????? | | ??????????????????????????????????????# ?????? | | ??????????????????????????????????????# ?????? | +----------------------------------------------------+ Best States ------------- Heat Dissipation 52 Energy Generation 14 Energy Capacity 265 Matter Stores 450 Matter Capacity 450 Sight Range 18 Terrain Scan Density 10 Armor Coverage 450 Evasion (%) 55 Targeting Accuracy 5 Item Schematics ----------------- Ion Engine | -9/Materials | Scanalyzed Robot Schematics ------------------ None Fabricated ------------ Nothing Repaired ---------- Heat Sink | 30% | -9/Materials Alien Tech Used ----------------- None Achievements -------------- None Challenges ------------ None Game ------ Seed DefenseLightningProcessor Manual? 0 Play Time 00:28:08 Cumulative 25.8 hours Start 2025.05.29 @ 08:04:35 End 2025.05.29 @ 09:25:43 Sessions 1 Manual Loads 0 Difficulty Rogue Special Mode None Game No. 43 Rogue 43 Adventurer 0 Explorer 0 Win Type - Total 0 Types 0/0/0/0/0/0/0/0/0/0 Lore% 11 Gallery% 29 Achievement% 24 Wizard Run 0 Options --------- Layout 1 ASCII 0 Keyboard 0 Movement Mouse Keybinds 0 Fullscreen 1 Font 32/SmallcapsGlow Map View 77x35 Zoom Use 0% Tactical HUD 1 Map Filters NONE Filters NONE Steam 1 RUN: 80a3bac2-2d67-4704-8301-db6f04266690